fUST/lending_fUST_20240808
["ID","MTS","AMOUNT","RATE_DAILY","PERIOD"]
[334449160,1723105839559,-45217.61026187,0.00025,2]
[334449161,1723105839569,-3298.54011806,0.00025,2]
[334449162,1723105839578,-2307.93210394,0.00025,2]
[334449163,1723105839587,-170.0,0.00025,2]
[334449164,1723105839597,-2582.47869609,0.0002516,2]
[334449165,1723105839606,-900.0,0.00025469,3]
[334449166,1723105839615,-170.0,0.0002589,2]
[334449167,1723105839627,-205.2005168,0.00025973,2]
[334449168,1723105839636,-200.0,0.00026027,2]
[334449169,1723105839645,-7458.94652043,0.0002649,2]
[334449170,1723105839654,-207.1717265,0.00026578,2]
[334449171,1723105839663,-150.0,0.00026718,2]
[334449172,1723105839673,-881.97401853,0.00026759,2]
[334449173,1723105839682,-881.97401853,0.00026759,2]
[334449174,1723105839691,-153.0,0.00026767,2]
[334449175,1723105839701,-512.3820635,0.00026769,2]
[334449176,1723105839711,-153.0,0.00026795,2]
[334449177,1723105839720,-153.0,0.00026795,2]
[334449178,1723105839730,-153.0,0.00026795,2]
[334449179,1723105839739,-207.0130742,0.00026795,2]
[334449180,1723105839749,-151.0,0.00026866,4]
[334449181,1723105839758,-348.0,0.00027,2]
[334449182,1723105839768,-3532.81788093,0.00027,4]
[334449183,1723105839777,-4881.28726499,0.00027,2]
[334449184,1723105839786,-168.46130497,0.00027076,2]
[334449185,1723105839795,-2475.18329961,0.00027085,2]
[334449186,1723105839804,-37368.7048111,0.00027136,3]
[334449187,1723105839814,-37368.7048111,0.00027145,3]
[334449188,1723105839823,-37368.7048111,0.00027155,3]
[334449189,1723105839833,-37368.7048111,0.00027166,3]
[334449190,1723105839842,-3421.54093531,0.00027176,2]
[334449191,1723105839851,-2000.0,0.00027176,2]
[334449192,1723105839860,-2582.47869609,0.00027187,2]
[334449193,1723105839870,-150.112233,0.000272,8]
[334449194,1723105839885,-150.112233,0.000272,8]
[334449195,1723105839895,-150.112233,0.000272,9]
[334449196,1723105839904,-150.112233,0.000272,7]
[334449197,1723105839914,-37368.7048111,0.00027287,3]
[334449198,1723105839923,-2000.0,0.00027297,2]
[334449199,1723105839933,-150.0,0.000273,2]
[334449200,1723105839947,-150.112233,0.000273,5]
[334449201,1723105839956,-150.112233,0.000273,6]
[334449203,1723105839966,-150.112233,0.000273,10]
[334449204,1723105839975,-150.112233,0.000273,8]
[334449205,1723105839986,-150.112233,0.000273,10]
[334449206,1723105839996,-151.0,0.0002732,4]
[334449207,1723105840005,-200.99530001,0.00027373,2]
[334449208,1723105840015,-4778.11378756,0.0002738,2]
[334449209,1723105840027,-167.30636181,0.00027386,2]
[334449210,1723105840036,-150.01,0.00027396,2]
[334449211,1723105840045,-2719.22469581,0.00027396,2]
[334449212,1723105840055,-2605.08504403,0.00027396,2]
[334449213,1723105840064,-306.48613364,0.00027396,2]
[334449214,1723105840074,-160.0,0.00027396,10]
[334449215,1723105840083,-350.99427229,0.00027397,2]
[334449216,1723105840092,-912.9067075,0.00027397,2]
[334449217,1723105840101,-501.48098976,0.00027397,7]
[334449218,1723105840111,-500.0,0.00027397,7]
[334449219,1723105840121,-500.0,0.00027397,7]
[334449220,1723105840133,-500.0,0.00027397,7]
[334449221,1723105840142,-500.0,0.00027397,7]
[334449222,1723105840152,-500.0,0.00027397,7]
[334449223,1723105840162,-500.0,0.00027397,7]
[334449224,1723105840171,-500.49628931,0.00027397,7]
[334449225,1723105840181,-500.0,0.00027397,7]
[334449226,1723105840190,-500.0,0.00027397,7]
[334449227,1723105840200,-500.0,0.00027397,7]
[334449228,1723105840209,-500.0,0.00027397,7]
[334449229,1723105840219,-500.0,0.00027397,7]
[334449230,1723105840228,-501.36640129,0.00027397,7]
[334449231,1723105840238,-500.0,0.00027397,7]
[334449232,1723105840247,-541.76,0.00027397,7]
[334449233,1723105840257,-500.54070269,0.00027397,7]
[334449234,1723105840267,-502.27175704,0.00027397,7]
[334449235,1723105840276,-732.76,0.00027397,7]
[334449236,1723105840285,-562.00758773,0.00027397,7]
[334449237,1723105840295,-515.72987825,0.00027397,7]
[334449238,1723105840304,-502.30998155,0.00027397,7]
[334449239,1723105840314,-500.0,0.00027397,7]
[334449241,1723105840323,-500.0,0.00027397,7]
[334449242,1723105840333,-500.0,0.00027397,7]
[334449243,1723105840342,-500.0,0.00027397,7]
[334449244,1723105840352,-343932.02519309,0.00027397,2]
[334449245,1723105840361,-500.0,0.00027397,7]
[334449246,1723105840370,-502.39296153,0.00027397,7]
[334449247,1723105840382,-500.0,0.00027397,7]
[334449248,1723105840392,-500.0,0.00027397,7]
[334449249,1723105840401,-500.0,0.00027397,7]
[334449250,1723105840410,-512.87510817,0.00027397,7]
[334449252,1723105840420,-505.71482185,0.00027397,7]
[334449254,1723105840430,-500.0,0.00027397,7]
[334449255,1723105840439,-1624.34989447,0.00027397,2]
[334449256,1723105840449,-500.0,0.00027397,7]
[334449257,1723105840460,-671.42,0.00027397,7]
[334449258,1723105840470,-500.0,0.00027397,7]
[334449259,1723105840480,-500.0,0.00027397,7]
[334449260,1723105840491,-500.0,0.00027397,7]
[334449261,1723105840500,-496.0,0.00027397,7]
[334449262,1723105840510,-500.0,0.00027397,7]
[334449263,1723105840520,-500.0,0.00027397,7]
[334449264,1723105840530,-500.0,0.00027397,7]
[334449265,1723105840541,-501.78520587,0.00027397,7]
[334449266,1723105840552,-501.56228722,0.00027397,7]
[334449267,1723105840562,-500.0,0.00027397,7]
[334449268,1723105840572,-500.0,0.00027397,7]
[334449269,1723105840581,-500.0,0.00027397,7]
[334449270,1723105840591,-500.0,0.00027397,7]
[334449271,1723105840600,-500.0,0.00027397,7]
[334449272,1723105840610,-500.0,0.00027397,7]
[334449273,1723105840619,-302.81918853,0.00027397,7]
[334449274,1723105840630,-500.0,0.00027397,7]
[334449275,1723105840640,-500.0,0.00027397,7]
[334449276,1723105840649,-500.0,0.00027397,7]
[334449277,1723105840659,-200.0,0.00027397,7]
[334449278,1723105840668,-614.93,0.00027397,7]
[334449279,1723105840678,-500.0,0.00027397,7]
[334449280,1723105840688,-500.0,0.00027397,7]
[334449281,1723105840697,-314.80069114,0.00027397,7]
[334449282,1723105840706,-500.0,0.00027397,7]
[334449283,1723105840715,-508.13894592,0.00027397,7]
[334449284,1723105840725,-500.0,0.00027397,7]
[334449285,1723105840735,-500.0,0.00027397,7]
[334449286,1723105840745,-500.0,0.00027397,7]
[334449287,1723105840754,-500.0,0.00027397,7]
[334449288,1723105840763,-502.96226065,0.00027397,7]
[334449289,1723105840774,-501.01373827,0.00027397,7]
[334449290,1723105840784,-501.20008223,0.00027397,7]
[334449291,1723105840795,-500.72339024,0.00027397,7]
[334449292,1723105840805,-1687.62,0.00027397,7]
[334449293,1723105840814,-500.0,0.00027397,7]
[334449294,1723105840824,-500.0,0.00027397,7]
[334449295,1723105840833,-500.63652447,0.00027397,7]
[334449296,1723105840843,-500.0,0.00027397,7]
[334449299,1723105840854,-500.0,0.00027397,7]
[334449300,1723105840863,-500.0,0.00027397,7]
[334449303,1723105840873,-500.0,0.00027397,7]
[334449305,1723105840885,-500.0,0.00027397,2]
[334449306,1723105840895,-500.0,0.00027397,7]
[334449307,1723105840904,-500.0,0.00027397,7]
[334449309,1723105840916,-500.0,0.00027397,7]
[334449311,1723105840927,-500.0,0.00027397,7]
[334449313,1723105840937,-500.0,0.00027397,7]
[334449315,1723105840952,-500.0,0.00027397,7]
[334449317,1723105840963,-500.0,0.00027397,7]
[334449319,1723105840972,-500.30179056,0.00027397,7]
[334449320,1723105840982,-500.0,0.00027397,7]
[334449322,1723105840992,-500.0,0.00027397,7]
[334449324,1723105841001,-500.0,0.00027397,7]
[334449326,1723105841010,-501.33308208,0.00027397,7]
[334449328,1723105841020,-212.56,0.00027397,7]
[334449330,1723105841031,-500.45592668,0.00027397,7]
[334449332,1723105841040,-500.0,0.00027397,7]
[334449333,1723105841049,-500.0,0.00027397,7]
[334449334,1723105841059,-500.0,0.00027397,7]
[334449335,1723105841069,-500.0,0.00027397,7]
[334449336,1723105841079,-500.0,0.00027397,7]
[334449337,1723105841088,-500.0,0.00027397,7]
[334449338,1723105841098,-500.0,0.00027397,7]
[334449339,1723105841107,-975.82,0.00027397,7]
[334449340,1723105841121,-501.97172639,0.00027397,7]
[334449341,1723105841133,-177.47221127,0.00027397,7]
[334449342,1723105841142,-500.0,0.00027397,7]
[334449343,1723105841151,-501.06054938,0.00027397,7]
[334449344,1723105841160,-500.25730008,0.00027397,7]
[334449345,1723105841170,-540.51,0.00027397,7]
[334449346,1723105841182,-501.13304307,0.00027397,7]
[334449347,1723105841192,-500.0,0.00027397,7]
[334449348,1723105841202,-500.0,0.00027397,7]
[334449349,1723105841213,-500.0,0.00027397,7]
[334449350,1723105841224,-501.17731357,0.00027397,7]
[334449351,1723105841234,-500.0,0.00027397,7]
[334449352,1723105841244,-500.0,0.00027397,7]
[334449353,1723105841255,-500.0,0.00027397,7]
[334449354,1723105841265,-896.82,0.00027397,7]
[334449355,1723105841274,-500.0,0.00027397,7]
[334449356,1723105841285,-500.0,0.00027397,7]
[334449357,1723105841295,-581.9,0.00027397,7]
[334449358,1723105841306,-417.79071139,0.00027397,7]
[334449359,1723105841316,-500.0,0.00027397,7]
[334449360,1723105841326,-502.14838966,0.00027397,7]
[334449361,1723105841335,-501.63373428,0.00027397,7]
[334449362,1723105841345,-482.95790235,0.00027397,7]
[334449363,1723105841356,-502.93550051,0.00027397,7]
[334449364,1723105841365,-500.42795888,0.00027397,7]
[334449365,1723105841375,-500.0,0.00027397,7]
[334449366,1723105841384,-500.0,0.00027397,7]
[334449367,1723105841393,-500.0,0.00027397,7]
[334449368,1723105841402,-500.2827213,0.00027397,7]
[334449369,1723105841412,-500.0,0.00027397,7]
[334449370,1723105841421,-500.0,0.00027397,7]
[334449371,1723105841431,-500.0,0.00027397,7]
[334449372,1723105841440,-500.0,0.00027397,7]
[334449373,1723105841449,-500.0,0.00027397,7]
[334449374,1723105841458,-500.0,0.00027397,7]
[334449375,1723105841467,-537.31,0.00027397,7]
[334449376,1723105841476,-500.0,0.00027397,7]
[334449377,1723105841486,-500.0,0.00027397,7]
[334449378,1723105841495,-500.0,0.00027397,7]
[334449379,1723105841503,-500.0,0.00027397,7]
[334449380,1723105841513,-500.0,0.00027397,7]
[334449381,1723105841522,-500.0,0.00027397,7]
[334449382,1723105841532,-500.0,0.00027397,7]
[334449383,1723105841541,-500.0,0.00027397,7]
[334449384,1723105841552,-500.0,0.00027397,7]
[334449385,1723105841562,-500.0,0.00027397,7]
[334449386,1723105841571,-500.0,0.00027397,7]
[334449387,1723105841580,-500.0,0.00027397,7]
[334449388,1723105841589,-292.40055204,0.00027397,7]
[334449389,1723105841598,-500.0,0.00027397,7]
[334449390,1723105841607,-500.0,0.00027397,7]
[334449391,1723105841616,-500.0,0.00027397,7]
[334449392,1723105841626,-500.0,0.00027397,7]
[334449393,1723105841636,-602.75,0.00027397,7]
[334449394,1723105841645,-501.41645297,0.00027397,7]
[334449395,1723105841654,-500.0,0.00027397,7]
[334449396,1723105841664,-500.0,0.00027397,7]
[334449397,1723105841673,-500.0,0.00027397,7]
[334449398,1723105841683,-500.0,0.00027397,7]
[334449399,1723105841692,-500.78420234,0.00027397,7]
[334449400,1723105841701,-500.0,0.00027397,7]
[334449401,1723105841710,-500.0,0.00027397,7]
[334449402,1723105841719,-500.0,0.00027397,7]
[334449403,1723105841727,-500.0,0.00027397,7]
[334449404,1723105841737,-500.0,0.00027397,7]
[334449405,1723105841746,-500.0,0.00027397,7]
[334449406,1723105841756,-1306.35,0.00027397,7]
[334449407,1723105841766,-500.0,0.00027397,7]
[334449408,1723105841775,-500.0,0.00027397,7]
[334449409,1723105841958,-500.0,0.00027397,7]
[334449410,1723105841969,-500.0,0.00027397,7]
[334449411,1723105841978,-500.0,0.00027397,7]
[334449412,1723105841989,-500.0,0.00027397,7]
[334449413,1723105841998,-500.0,0.00027397,7]
[334449414,1723105842008,-500.0,0.00027397,7]
[334449415,1723105842020,-500.0,0.00027397,7]
[334449416,1723105842030,-500.0,0.00027397,7]
[334449417,1723105842041,-500.0,0.00027397,7]
[334449418,1723105842051,-500.0,0.00027397,7]
[334449419,1723105842061,-500.0,0.00027397,7]
[334449420,1723105842070,-386.357686,0.00027397,2]
[334449421,1723105842080,-416.28673535,0.00027397,7]
[334449422,1723105842090,-386.357686,0.00027397,2]
[334449423,1723105842099,-500.0,0.00027397,7]
[334449424,1723105842109,-500.0,0.00027397,7]
[334449425,1723105842119,-500.0,0.00027397,7]
[334449426,1723105842129,-386.357686,0.00027397,2]
[334449427,1723105842138,-386.357686,0.00027397,2]
[334449428,1723105842148,-500.0,0.00027397,7]
[334449429,1723105842158,-500.0,0.00027397,7]
[334449430,1723105842168,-500.0,0.00027397,7]
[334449431,1723105842177,-500.46747427,0.00027397,7]
[334449432,1723105842188,-500.0,0.00027397,7]
[334449433,1723105842197,-500.0,0.00027397,7]
[334449434,1723105842206,-500.0,0.00027397,7]
[334449435,1723105842216,-500.0,0.00027397,7]
[334449436,1723105842226,-500.0,0.00027397,7]
[334449437,1723105842236,-500.0,0.00027397,7]
[334449438,1723105842245,-500.0,0.00027397,7]
[334449439,1723105842254,-400.52575816,0.00027397,7]
[334449440,1723105842264,-500.0,0.00027397,7]
[334449441,1723105842275,-500.0,0.00027397,7]
[334449442,1723105842284,-500.0,0.00027397,7]
[334449443,1723105842293,-500.0,0.00027397,7]
[334449444,1723105842304,-500.0,0.00027397,7]
[334449445,1723105842313,-999.59,0.00027397,7]
[334449446,1723105842322,-500.0,0.00027397,7]
[334449447,1723105842332,-500.65393547,0.00027397,7]
[334449448,1723105842341,-1795.94,0.00027397,7]
[334449449,1723105842351,-510.11473304,0.00027397,7]
[334449450,1723105842361,-608.74,0.00027397,7]
[334449451,1723105842371,-502.01469349,0.00027397,7]
[334449452,1723105842382,-500.0,0.00027397,7]
[334449453,1723105842391,-500.0,0.00027397,7]
[334449454,1723105842400,-500.0,0.00027397,7]
[334449455,1723105842409,-500.80689215,0.00027397,7]
[334449456,1723105842419,-500.0,0.00027397,7]
[334449457,1723105842428,-547.8135611,0.00027397,14]
[334449458,1723105842437,-500.0,0.00027397,7]
[334449459,1723105842447,-500.0,0.00027397,7]
[334449460,1723105842457,-500.0,0.00027397,2]
[334449461,1723105842467,-521.34,0.00027397,7]
[334449462,1723105842478,-500.0,0.00027397,7]
[334449463,1723105842487,-500.0,0.00027397,7]
[334449464,1723105842499,-506.48266255,0.00027397,7]
[334449465,1723105842510,-500.0,0.00027397,7]
[334449466,1723105842520,-500.0,0.00027397,7]
[334449467,1723105842530,-846.18,0.00027397,7]
[334449468,1723105842540,-500.0,0.00027397,7]
[334449469,1723105842551,-1054.91,0.00027397,7]
[334449470,1723105842560,-500.0,0.00027397,7]
[334449471,1723105842571,-500.0,0.00027397,7]
[334449472,1723105842580,-500.0,0.00027397,7]
[334449473,1723105842590,-500.0,0.00027397,7]
[334449474,1723105842600,-500.0,0.00027397,7]
[334449475,1723105842609,-500.0,0.00027397,7]
[334449476,1723105842619,-500.0,0.00027397,7]
[334449477,1723105842631,-500.0,0.00027397,7]
[334449478,1723105842640,-500.0,0.00027397,7]
[334449479,1723105842650,-500.0,0.00027397,7]
[334449480,1723105842659,-524.08337142,0.00027397,7]
[334449481,1723105842669,-500.0,0.00027397,7]
[334449482,1723105842678,-500.0,0.00027397,7]
[334449483,1723105842687,-500.0,0.00027397,7]
[334449484,1723105842696,-500.0,0.00027397,7]
[334449485,1723105842707,-500.0,0.00027397,7]
[334449486,1723105842717,-500.0,0.00027397,7]
[334449487,1723105842727,-500.0,0.00027397,7]
[334449488,1723105842737,-500.0,0.00027397,7]
[334449489,1723105842746,-500.0,0.00027397,7]
[334449490,1723105842757,-500.0,0.00027397,7]
[334449491,1723105842767,-500.0,0.00027397,7]
[334449492,1723105842777,-500.0,0.00027397,7]
[334449493,1723105842787,-500.0,0.00027397,7]
[334449494,1723105842797,-500.0,0.00027397,7]
[334449495,1723105842806,-500.0,0.00027397,7]
[334449496,1723105842816,-500.0,0.00027397,7]
[334449497,1723105842826,-315.16960943,0.00027397,7]
[334449498,1723105842835,-829.61,0.00027397,7]
[334449499,1723105842844,-500.0,0.00027397,7]
[334449500,1723105842853,-770.74,0.00027397,7]
[334449501,1723105842863,-500.0,0.00027397,7]
[334449502,1723105842873,-500.0,0.00027397,7]
[334449503,1723105842883,-500.0,0.00027397,7]
[334449504,1723105842893,-151.0,0.00027397,7]
[334449505,1723105842902,-500.0,0.00027397,7]
[334449506,1723105842911,-151.0,0.00027397,7]
[334449507,1723105842921,-500.0,0.00027397,7]
[334449508,1723105842931,-502.42471417,0.00027397,7]
[334449509,1723105842942,-500.0,0.00027397,7]
[334449511,1723105842954,-500.0,0.00027397,2]
[334449512,1723105842963,-500.0,0.00027397,7]
[334449513,1723105842972,-500.0,0.00027397,7]
[334449514,1723105842983,-500.0,0.00027397,7]
[334449515,1723105842992,-500.0,0.00027397,7]
[334449516,1723105843002,-500.0,0.00027397,7]
[334449517,1723105843013,-500.0,0.00027397,7]
[334449518,1723105843023,-500.0,0.00027397,7]
[334449519,1723105843034,-500.0,0.00027397,7]
[334449520,1723105843044,-500.0,0.00027397,7]
[334449521,1723105843054,-1693.65,0.00027397,7]
[334449522,1723105843064,-500.0,0.00027397,7]
[334449524,1723105843074,-500.0,0.00027397,7]
[334449525,1723105843085,-502.07808025,0.00027397,7]
[334449527,1723105843094,-500.0,0.00027397,7]
[334449528,1723105843103,-1186.71,0.00027397,7]
[334449530,1723105843113,-655.27,0.00027397,7]
[334449531,1723105843123,-500.0,0.00027397,7]
[334449532,1723105843133,-564.91,0.00027397,7]
[334449533,1723105843142,-500.0,0.00027397,7]
[334449534,1723105843151,-500.0,0.00027397,7]
[334449535,1723105843160,-524.3966782,0.00027397,7]
[334449536,1723105843171,-500.0,0.00027397,7]
[334449537,1723105843180,-500.0,0.00027397,7]
[334449540,1723105843189,-151.0,0.00027397,7]
[334449542,1723105843198,-210.275677,0.00027397,7]
[334449544,1723105843208,-500.0,0.00027397,7]
[334449546,1723105843217,-500.0,0.00027397,7]
[334449548,1723105843226,-578.62639394,0.00027397,7]
[334449550,1723105843235,-620.76,0.00027397,7]
[334449553,1723105843245,-500.0,0.00027397,7]
[334449555,1723105843254,-500.0,0.00027397,7]
[334449556,1723105843264,-1164.39,0.00027397,7]
[334449557,1723105843273,-500.0,0.00027397,7]
[334449558,1723105843284,-522.43271615,0.00027397,7]
[334449559,1723105843294,-501.54936867,0.00027397,7]
[334449560,1723105843304,-500.0,0.00027397,7]
[334449561,1723105843314,-179.15255214,0.00027397,7]
[334449562,1723105843324,-1296.97,0.00027397,7]
[334449563,1723105843333,-500.0,0.00027397,7]
[334449564,1723105843343,-1312.24,0.00027397,7]
[334449565,1723105843353,-834.89,0.00027397,7]
[334449566,1723105843364,-500.0,0.00027397,7]
[334449567,1723105843373,-500.0,0.00027397,7]
[334449568,1723105843383,-776.16994128,0.00027397,5]
[334449569,1723105843392,-500.0,0.00027397,7]
[334449570,1723105843400,-501.39781597,0.00027397,7]
[334449572,1723105843410,-500.0,0.00027397,7]
[334449573,1723105843419,-500.0,0.00027397,7]
[334449574,1723105843430,-500.0,0.00027397,7]
[334449575,1723105843439,-500.0,0.00027397,7]
[334449576,1723105843448,-151.0,0.00027397,7]
[334449577,1723105843458,-151.0,0.00027397,7]
[334449578,1723105843469,-500.0,0.00027397,7]
[334449579,1723105843478,-500.0,0.00027397,7]
[334449580,1723105843488,-500.0,0.00027397,7]
[334449581,1723105843497,-500.0,0.00027397,7]
[334449582,1723105843506,-151.0,0.00027397,7]
[334449583,1723105843515,-151.0,0.00027397,7]
[334449584,1723105843525,-847.57,0.00027397,7]
[334449585,1723105843534,-500.0,0.00027397,7]
[334449586,1723105843543,-500.0,0.00027397,7]
[334449587,1723105843554,-500.0,0.00027397,7]
[334449588,1723105843565,-500.0,0.00027397,7]
[334449589,1723105843574,-500.0,0.00027397,7]
[334449590,1723105843585,-762.03,0.00027397,7]
[334449591,1723105843594,-619.15,0.00027397,7]
[334449592,1723105843603,-685.51,0.00027397,7]
[334449593,1723105843613,-693.74,0.00027397,7]
[334449594,1723105843622,-500.0,0.00027397,7]
[334449595,1723105843632,-1560.89,0.00027397,7]
[334449596,1723105843641,-500.0,0.00027397,7]
[334449597,1723105843650,-500.0,0.00027397,7]
[334449598,1723105843659,-501.74504768,0.00027397,7]
[334449599,1723105843668,-500.90804881,0.00027397,7]
[334449600,1723105843678,-500.0,0.00027397,7]
[334449601,1723105843686,-500.0,0.00027397,7]
[334449602,1723105843695,-500.0,0.00027397,7]
[334449603,1723105843706,-502.52733592,0.00027397,7]
[334449604,1723105843715,-500.0,0.00027397,7]
[334449605,1723105843724,-151.0,0.00027397,2]
[334449606,1723105843733,-771.49,0.00027397,7]
[334449607,1723105843743,-500.0,0.00027397,7]
[334449608,1723105843752,-901.96,0.00027397,7]
[334449609,1723105843761,-502.01832693,0.00027397,7]
[334449610,1723105843770,-500.0,0.00027397,7]
[334449611,1723105843780,-500.0,0.00027397,7]
[334449613,1723105843790,-500.0,0.00027397,7]
[334449615,1723105843799,-500.0,0.00027397,7]
[334449617,1723105843809,-501.18315458,0.00027397,7]
[334449619,1723105843819,-500.0,0.00027397,7]
[334449621,1723105843828,-1464.57,0.00027397,7]
[334449623,1723105843837,-500.0,0.00027397,7]
[334449625,1723105843847,-966.67,0.00027397,7]
[334449627,1723105843857,-500.0,0.00027397,7]
[334449629,1723105843868,-500.0,0.00027397,7]
[334449631,1723105843880,-500.0,0.00027397,7]
[334449633,1723105843889,-500.0,0.00027397,7]
[334449634,1723105843898,-500.0,0.00027397,7]
[334449635,1723105843907,-500.0,0.00027397,7]
[334449636,1723105843916,-500.0,0.00027397,7]
[334449637,1723105843925,-500.0,0.00027397,7]
[334449638,1723105843935,-500.0,0.00027397,7]
[334449639,1723105843949,-500.0,0.00027397,7]
[334449640,1723105843958,-500.0,0.00027397,7]
[334449641,1723105843968,-500.0,0.00027397,7]
[334449642,1723105843978,-500.0,0.00027397,7]
[334449643,1723105843988,-500.0,0.00027397,7]
[334449644,1723105843998,-509.5262953,0.00027397,7]
[334449646,1723105844007,-574.14,0.00027397,7]
[334449647,1723105844018,-1316.03,0.00027397,7]
[334449649,1723105844028,-500.0,0.00027397,7]
[334449651,1723105844037,-500.0,0.00027397,7]
[334449653,1723105844046,-500.0,0.00027397,7]
[334449655,1723105844056,-500.0,0.00027397,7]
[334449656,1723105844066,-503.26537494,0.00027397,7]
[334449657,1723105844075,-500.0,0.00027397,7]
[334449658,1723105844085,-500.0,0.00027397,7]
[334449659,1723105844094,-500.0,0.00027397,7]
[334449660,1723105844104,-1373.55,0.00027397,7]
[334449661,1723105844113,-763.4,0.00027397,7]
[334449662,1723105844122,-372.09716578,0.00027397,7]
[334449663,1723105844136,-500.0,0.00027397,7]
[334449664,1723105844146,-500.0,0.00027397,7]
[334449665,1723105844156,-526.74532525,0.00027397,7]
[334449666,1723105844164,-1400.21,0.00027397,7]
[334449667,1723105844174,-996.39,0.00027397,7]
[334449668,1723105844184,-878.39,0.00027397,7]
[334449669,1723105844193,-500.0,0.00027397,7]
[334449670,1723105844202,-1432.52,0.00027397,7]
[334449671,1723105844211,-500.0,0.00027397,7]
[334449672,1723105844220,-500.0,0.00027397,7]
[334449673,1723105844229,-1046.76,0.00027397,7]
[334449674,1723105844238,-500.0,0.00027397,7]
[334449675,1723105844248,-500.0,0.00027397,7]
[334449676,1723105844257,-500.0,0.00027397,7]
[334449677,1723105844267,-500.0,0.00027397,7]
[334449678,1723105844276,-500.0,0.00027397,7]
[334449679,1723105844285,-507.66,0.00027397,7]
[334449680,1723105844295,-500.0,0.00027397,7]
[334449681,1723105844304,-500.0,0.00027397,7]
[334449682,1723105844314,-500.0,0.00027397,7]
[334449683,1723105844324,-500.0,0.00027397,7]
[334449684,1723105844334,-500.0,0.00027397,7]
[334449685,1723105844345,-500.0,0.00027397,7]
[334449686,1723105844354,-544.27,0.00027397,7]
[334449687,1723105844364,-1096.36,0.00027397,7]
[334449688,1723105844375,-500.0,0.00027397,7]
[334449689,1723105844391,-500.0,0.00027397,7]
[334449690,1723105844402,-500.0,0.00027397,7]
[334449691,1723105844411,-500.0,0.00027397,7]
[334449692,1723105844420,-500.0,0.00027397,7]
[334449693,1723105844430,-500.0,0.00027397,7]
[334449694,1723105844439,-500.0,0.00027397,7]
[334449695,1723105844448,-500.0,0.00027397,7]
[334449696,1723105844458,-500.0,0.00027397,7]
[334449697,1723105844468,-500.0,0.00027397,7]
[334449698,1723105844477,-500.0,0.00027397,7]
[334449699,1723105844487,-500.0,0.00027397,7]
[334449700,1723105844496,-500.0,0.00027397,7]
[334449701,1723105844509,-561.56,0.00027397,7]
[334449702,1723105844519,-500.0,0.00027397,7]
[334449703,1723105844529,-500.0,0.00027397,7]
[334449704,1723105844539,-500.0,0.00027397,7]
[334449705,1723105844550,-507.68751428,0.00027397,7]
[334449706,1723105844560,-500.0,0.00027397,7]
[334449707,1723105844571,-500.0,0.00027397,7]
[334449708,1723105844580,-500.0,0.00027397,7]
[334449709,1723105844589,-500.0,0.00027397,7]
[334449710,1723105844599,-500.0,0.00027397,7]
[334449711,1723105844608,-500.0,0.00027397,7]